Cogmind - Beta 14 @@@ ROGUE MODE // 2024.11.19 @ 20:37:24 Player: Calasmeer Result: Destroyed by H-66 Slayer with Heavy Assault Rifle Performance ------------- Evolutions (4) 2000 Regions Visited (9) 1800 Robots Destroyed (82) 410 Value Destroyed (2455) 2455 Prototype IDs (19) 380 Alien Tech Used (0) 0 Bonus (644) 644 TOTAL SCORE: 7689 Bonus ------- High Alert Combat Kills 44 Registered with UFD 300 Met Imprinter 300 Cogmind --------- Core Integrity 0/850 Matter 300/300 Energy 151/170 System Corruption 0% Temperature Warning (376) Movement Rolling (170) Ox6 Location -5/Proximity Caves Parts ------- > --- POWER (1) -------- Makeshift Power Source > --- PROPULSION (5) --- Flexi-carbon Leg Wheel > --- UTILITY (6) ------ High-capacity Storage Unit Experimental Signal Interpreter Experimental Terrain Scan Processor Improved Heavy Armor Plating > --- WEAPON (3) ------- Heavy Plasma Cannon > --- INVENTORY (20) --- Improved Deuterium Engine Neutrino Core Advanced Heat Sink High-capacity Storage Unit Compact Matter Pod (150) Structural Scanner Structural Scanner Spectral Analyzer Experimental Terrain Scanner Hardened Medium Armor Plating Layered Medium Armor Plating Flak Gun Flak Gun Heavy Machine Gun Power Maul Peak State ------------ > --- POWER ------------ Makeshift Power Source > --- PROPULSION ------- Flexi-carbon Leg Flexi-carbon Leg Wheel Armored Wheel > --- UTILITY ---------- Scrap Suit High-capacity Storage Unit Experimental Signal Interpreter Experimental Terrain Scanner Experimental Terrain Scan Processor > --- WEAPON ----------- Heavy Plasma Cannon Flak Gun Power Maul > --- INVENTORY -------- Improved Deuterium Engine Neutrino Core Advanced Heat Sink High-capacity Storage Unit Compact Matter Pod Structural Scanner Structural Scanner Spectral Analyzer Improved Sensor Array Hardened Medium Armor Plating Improved Heavy Armor Plating Layered Medium Armor Plating Heavy Ion Cannon Flak Gun Flak Gun Heavy Machine Gun Rocket Launcher [Rating: 71] Favorites ----------- Power Light Ion Engine Engine Light Ion Engine Power Core Nuclear Core Propulsion Wheel Treads Overtuned Medium Treads Leg Flexi-carbon Leg Wheel Wheel Utility High-capacity Storage Unit Device Scrap Suit Storage High-capacity Storage Unit Processor Advanced Terrain Scan Processor Protection Hardened Light Armor Plating Weapon Heavy Plasma Cannon Energy Gun Particle Gun Energy Cannon Heavy Plasma Cannon Ballistic Gun Battle Rifle Ballistic Cannon Advanced Assault Cannon Launcher Rocket Launcher Impact Weapon Power Maul Piercing Weapon Spear Build | -11 -10 -10 -8 -8 -6 -6 -6 -6 -5 ------- Run | Yrd Mat Sub Rec Scr Fac Low Low Zio Pro Slots Evolved 8 | . . . . . 8 . . . . Power . | . . . . . . . . . . Propulsion 3 | . . . . . 3 . . . . Utility 4 | . . . . . 4 . . . . Weapon 1 | . . . . . 1 . . . . Parts Attached 110 | 7 11 7 13 9 45 4 1 6 7 Power 7 | 1 . 1 2 . 1 1 1 . . Engine 6 | 1 . 1 2 . . 1 1 . . Core 1 | . . . . . 1 . . . . Reactor . | . . . . . . . . . . Propulsion 37 | 2 4 1 4 5 19 1 . 1 . Treads 8 | . 2 . 1 . 5 . . . . Leg 4 | . . . . . 3 . . 1 . Wheel 25 | 2 2 1 3 5 11 1 . . . Hover . | . . . . . . . . . . Flight . | . . . . . . . . . . Utility 35 | 2 3 . 3 1 15 2 . 4 5 Device 20 | 1 2 . 2 . 9 2 . 1 3 Storage 4 | 1 1 . . 1 1 . . . . Processor 5 | . . . . . 2 . . 3 . Hackware . | . . . . . . . . . . Protection 6 | . . . 1 . 3 . . . 2 Artifact . | . . . . . . . . . . Weapon 31 | 2 4 5 4 3 10 . . 1 2 Energy Gun 12 | 2 3 1 1 1 4 . . . . Energy Cannon 6 | . . 1 1 1 2 . . . 1 Ballistic Gun 3 | . . 1 . 1 1 . . . . Ballistic Cannon 2 | . . . . . 2 . . . . Launcher 6 | . 1 2 2 . . . . . 1 Special Weapon . | . . . . . . . . . . Impact Weapon 2 | . . . . . 1 . . 1 . Slashing Weapon . | . . . . . . . . . . Piercing Weapon . | . . . . . . . . . . Special Melee Weapon . | . . . . . . . . . . Unidentified Prototypes 3 | . . . . . 2 . . 1 . Parts Lost 24 | . . 5 . . 8 5 . . 6 Power 2 | . . 1 . . . 1 . . . Propulsion 11 | . . 1 . . 5 3 . . 2 Utility 2 | . . 1 . . . . . . 1 Weapon 9 | . . 2 . . 3 1 . . 3 Highest Loss Streak 5 | . . 2 . . 5 3 . . 3 To Critical Strikes . | . . . . . . . . . . Average Slot Usage (%) 88 | . 100 97 99 88 88 91 75 79 78 Engine 8 | . 14 11 13 14 2 1 4 6 6 Treads 1 | . 1 . . . 4 5 . . . Leg 3 | . . . . . 4 12 6 6 12 Wheel 21 | . 26 27 27 27 20 12 13 13 8 Device 10 | . 14 14 9 3 18 13 13 12 12 Storage 10 | . 14 14 14 14 5 6 6 6 6 Processor 4 | . . . . . 5 13 13 13 13 Energy Gun 3 | . 27 4 9 . 2 . . . . Energy Cannon 8 | . . 2 12 13 6 6 6 6 10 Ballistic Gun 7 | . . 9 . 13 7 12 6 6 2 Launcher 1 | . . 11 5 . . . . . . Peak Build Rating 71 | 7 9 12 16 27 70 69 54 71 67 Average Rating 35 | 5 8 11 13 17 55 65 50 60 61 On Entrance 29 | . 7 9 11 14 21 66 45 54 71 Naked Turns . | . . . . . . . . . . Heaviest Build 213 | 14 51 57 58 213 77 78 65 66 78 Greatest Support 56 | 26 32 32 26 30 56 26 22 22 22 Greatest Overweight (x) 70 | . 1 3 2 70 4 5 2 2 7 Average Overweight (x) 3 | . . 1 1 6 1 2 2 2 4 Largest Inventory Capacity 35 | 8 20 20 20 35 35 20 20 20 20 Average Capacity 23 | 7 19 20 20 31 20 20 20 20 20 Most Carried 35 | 4 15 20 20 35 34 20 20 20 19 Average Carried 20 | 2 11 18 19 27 19 19 19 19 17 Final Capacity 35 | 8 20 20 20 35 20 20 20 20 20 Final Carried 35 | 4 15 17 20 35 20 19 20 18 15 Class Distribution -------------------- 51% | Mutant 21% | Hauler-Mutant 14% | Scavenger-Skirmisher 5% | Skirmisher 4% | Scavenger-Mutant Dominant Class ---------------- Mutant | -10/Materials Mutant | -10/Subcaves Mutant | -8/Recycling Hauler-Mutant | -8/Scraptown Scavenger-Skirmisher | -6/Factory Scavenger-Skirmisher | -6/Lower Caves Mutant | -6/Lower Caves Mutant | -6/Zion Mutant | -5/Proximity Caves Resources | -11 -10 -10 -8 -8 -6 -6 -6 -6 -5 ----------- Run | Yrd Mat Sub Rec Scr Fac Low Low Zio Pro Matter Collected 2958 | 230 151 196 572 70 1276 144 20 50 249 Remotely . | . . . . . . . . . . Salvage Created 4075 | 156 309 191 774 . 2049 262 . . 334 Parts 185 | 14 29 15 22 . 80 10 . . 15 Haulers Intercepted 1 | . . . . . 1 . . . . Recyclers Shooed 11 | . 1 . 7 . 3 . . . . Parts Field Recycled . | . . . . . . . . . . Retrieved Matter . | . . . . . . . . . . Parts Self-Destructed 32 | . . 15 . . . . 6 . 11 Prevented . | . . . . . . . . . . Kills | -11 -10 -10 -8 -8 -6 -6 -6 -6 -5 ------- Run | Yrd Mat Sub Rec Scr Fac Low Low Zio Pro Combat Hostiles Destroyed 46 | . 7 10 2 . 16 4 . . 7 Guns 20 | . 3 2 . . 10 4 . . 1 Cannons 13 | . . 3 . . 5 . . . 5 AOE 11 | . 4 5 1 . . . . . 1 Classes Destroyed 14 | 3 4 1 1 . 4 1 . . . Worker 10 | 2 1 . . . 7 . . . . Builder 1 | . 1 . . . . . . . . Tunneler 3 | 3 . . . . . . . . . Hauler 1 | . . . . . 1 . . . . Recycler 18 | 1 1 . 9 . 7 . . . . Drone 1 | . . . . . 1 . . . . Watcher 4 | . 2 . . . 2 . . . . Swarmer 10 | . 3 4 . . 3 . . . . Grunt 10 | . 4 . . . 2 . . . 4 Sentry 5 | . . . 2 . 3 . . . . Hunter 5 | . . . . . 3 . . . 2 Programmer 5 | . . . . . 4 . . . 1 Subdweller 6 | . . 6 . . . . . . . Decomposer 2 | . . . . . . 2 . . . Thug 1 | . . . . . . 1 . . . Fireman 3 | . . . . . . 3 . . . Best Kill Streak 7 | 4 5 4 5 . 7 4 . . 3 Combat Bots Only 4 | . 4 4 1 . 3 4 . . 3 Max Kills in Single Turn 3 | 1 3 1 1 . 2 1 . . 1 Gunslinging . | . . . . . . . . . . Exploded 2 | . 2 1 1 . . . . . 1 Melee . | . . . . . . . . . . Uniques/NPCs Destroyed . | . . . . . . . . . . Combat | -11 -10 -10 -8 -8 -6 -6 -6 -6 -5 -------- Run | Yrd Mat Sub Rec Scr Fac Low Low Zio Pro Hostile Shots Fired 416 | . 11 67 10 . 172 77 4 . 75 Missed 113 | . 6 17 3 . 44 27 2 . 14 Damage Taken 4775 | . 102 546 136 . 1950 753 38 . 1250 Core 1002 | . 7 90 49 . 344 141 . . 371 Absorbed by Shields . | . . . . . . . . . . Regen/Repaired (Parts) 1128 | . . . . 136 97 30 . 845 20 Core Remaining (%) 70 | 100 . . . 41 . . . . . Volleys Fired 261 | 13 25 42 55 . 77 14 1 . 34 Largest 3 | 2 2 2 2 . 3 3 2 . 3 Hottest 215 | 80 105 145 145 . 215 158 118 . 183 Shots Fired 461 | 26 49 57 73 . 164 25 2 . 65 Gun 245 | 26 48 29 12 . 97 17 1 . 15 Cannon 180 | . . 9 47 . 67 8 1 . 48 Launcher 36 | . 1 19 14 . . . . . 2 Special . | . . . . . . . . . . Kinetic 115 | . . 19 . . 63 17 1 . 15 Thermal 238 | 13 23 19 59 . 67 8 1 . 48 Explosive 36 | . 1 19 14 . . . . . 2 Electromagnetic 72 | 13 25 . . . 34 . . . . Robot Hit Streak 15 | 6 10 5 5 . 15 5 . . 6 Robot Miss Streak 8 | 2 6 1 3 . 7 8 . . 5 Penetration Max 2 | . . . . . 2 . . . . Secondary Targets . | . . . . . . . . . . Shots Hit Robots 226 | 17 27 20 27 . 94 14 . . 27 Core Hits 154 | 7 17 15 12 . 61 13 . . 29 Critical Kills 4 | . . . 1 . 3 . . . . Critical Parts Destroyed 2 | . . . . . 2 . . . . Critical Strikes 8 | . 1 . 1 . 6 . . . . Meltdown 2 | . . . 1 . 1 . . . . Destroy 3 | . . . . . 3 . . . . Corrupt 2 | . 1 . . . 1 . . . . Smash 1 | . . . . . 1 . . . . Melee Attacks 34 | . . . . . 8 . . 25 1 Impact 34 | . . . . . 8 . . 25 1 Slashing . | . . . . . . . . . . Piercing . | . . . . . . . . . . Sneak Attacks 1 | . . . . . 1 . . . . Combat Hostiles . | . . . . . . . . . . Follow-up Attacks . | . . . . . . . . . . Damage Inflicted 6801 | 234 650 955 656 . 3058 416 6 . 826 Guns 2994 | 189 365 70 115 . 1716 338 6 . 195 Cannons 2034 | . . 107 406 . 961 78 . . 482 Explosions 1624 | 45 285 778 135 . 232 . . . 149 Melee 149 | . . . . . 149 . . . . Ramming . | . . . . . . . . . . Kinetic 1695 | . . 21 . . 1135 338 6 . 195 Thermal 2876 | 121 325 156 521 . 1193 78 . . 482 Explosive 1185 | . 123 778 135 . . . . . 149 Electromagnetic 896 | 113 202 . . . 581 . . . . Impact 149 | . . . . . 149 . . . . Slashing . | . . . . . . . . . . Piercing . | . . . . . . . . . . Highest Corruption 2 | . . . . . 2 2 2 2 . Average Corruption 1 | . . . . . 1 2 2 2 . Corruption Purged . | . . . . . . . . . . Corruption Blocked . | . . . . . . . . . . Effects 38 | . . . . . 18 14 4 2 . Message Errors 11 | . . . . . 5 4 2 . . Matter Fused 7 | . . . . . 4 2 1 . . Heat Flow Errors 4 | . . . . . 3 1 . . . Energy Discharges 6 | . . . . . 2 2 . 2 . Parts Fused 1 | . . . . . . . 1 . . Data Loss (minor) 4 | . . . . . 2 2 . . . Data Loss (major) 2 | . . . . . 1 1 . . . Misfires 1 | . . . . . 1 . . . . Alerts 1 | . . . . . . 1 . . . Weapon Failures 1 | . . . . . . 1 . . . Overload Shots . | . . . . . . . . . . Overflow Damage 306 | . . 33 8 . 236 . . . 29 Projectiles 59 | . . 13 8 . 9 . . . 29 Explosions 98 | . . 20 . . 78 . . . . Melee 149 | . . . . . 149 . . . . Knockbacks . | . . . . . . . . . . Impact . | . . . . . . . . . . Kinetic . | . . . . . . . . . . Secondary . | . . . . . . . . . . Self-Inflicted Damage 281 | . 47 27 33 . 144 . . . 30 Shots 11 | . 1 2 3 . 3 . . . 2 Rammed . | . . . . . . . . . . Targets Rammed . | . . . . . . . . . . Kicked . | . . . . . . . . . . Crushed . | . . . . . . . . . . Highest Temperature 799 | 126 225 36 256 . 700 186 6 . 799 Average Temperature 119 | 49 60 18 77 . 126 62 4 . 268 Received Heat Transfer 845 | . 18 198 36 . 147 254 18 . 174 Effects 28 | . . . . . 9 . . . 19 Shutdowns 6 | . . . . . 2 . . . 4 Energy Bleed 10 | . . . . . 6 . . . 4 Matter Decay 3 | . . . . . . . . . 3 Short Circuit 1 | . . . . . . . . . 1 Damage (minor) 2 | . . . . . . . . . 2 Damage (major) 3 | . . . . . . . . . 3 Damage (core) 3 | . . . . . 1 . . . 2 Siege Activations . | . . . . . . . . . . Robots Corrupted . | . . . . . . . . . . Combat Hostiles . | . . . . . . . . . . Parts Fried 3 | . 1 . . . 2 . . . . Impact Corruptions 2 | . . . . . 2 . . . . Robots Melted 2 | . . . 1 . 1 . . . . Combat Hostiles 2 | . . . 1 . 1 . . . . Parts Melted 10 | . . . 2 . 8 . . . . Heat Transferred 4081 | 225 573 259 851 . 1338 150 . . 685 Parts Sabotaged . | . . . . . . . . . . Parts Stolen . | . . . . . . . . . . Parts Stripped . | . . . . . . . . . . Power Chain Reactions 6 | 2 3 . . . 1 . . . . Alert | -11 -10 -10 -8 -8 -6 -6 -6 -6 -5 ------- Run | Yrd Mat Sub Rec Scr Fac Low Low Zio Pro Peak Influence 626 | 30 361 . 162 . 626 . . . . Initial 72 | . 19 . 72 . . . . . . Average 162 | 10 176 . 70 . 226 . . . . Maximum Alert Level 2 | . 1 . . . 2 . . . . Low Security (%) 75 | 100 67 . 100 . 61 . . . . Level 1 10 | . 32 . . . 9 . . . . Level 2 14 | . . . . . 29 . . . . Level 3 . | . . . . . . . . . . Level 4 . | . . . . . . . . . . Level 5 . | . . . . . . . . . . High Security . | . . . . . . . . . . Max Security . | . . . . . . . . . . Squads Dispatched 9 | . 1 . . . 8 . . . . Investigation 1 | . . . . . 1 . . . . Extermination 3 | . . . . . 3 . . . . Reinforcement 3 | . 1 . . . 2 . . . . Assault 1 | . . . . . 1 . . . . Garrison 1 | . . . . . 1 . . . . Intercept . | . . . . . . . . . . Searches Triggered . | . . . . . . . . . . Construction Impeded 1 | . . . . . 1 . . . . Haulers Reinforced . | . . . . . . . . . . Active Scanning Responses . | . . . . . . . . . . Cargo Convoy Interrupts . | . . . . . . . . . . Stealth | -11 -10 -10 -8 -8 -6 -6 -6 -6 -5 --------- Run | Yrd Mat Sub Rec Scr Fac Low Low Zio Pro Distress Signals 4 | . 4 . . . . . . . . Communications Jammed . | . . . . . . . . . . Distress Signals . | . . . . . . . . . . Times Spotted 77 | . 13 17 1 . 21 14 3 . 8 Peak Tracking Total 9 | . 5 6 1 . 6 9 3 . 3 Tactical Retreats 13 | . 1 2 . . 3 5 2 . . Traps | -11 -10 -10 -8 -8 -6 -6 -6 -6 -5 ------- Run | Yrd Mat Sub Rec Scr Fac Low Low Zio Pro Traps Triggered 4 | . . . . . 4 . . . . Indirectly . | . . . . . . . . . . Trap Hack Attempts . | . . . . . . . . . . Triggered . | . . . . . . . . . . Disarmed . | . . . . . . . . . . Reprogrammed . | . . . . . . . . . . Reused . | . . . . . . . . . . Traps Extracted . | . . . . . . . . . . Installed . | . . . . . . . . . . Triggered . | . . . . . . . . . . Machines | -11 -10 -10 -8 -8 -6 -6 -6 -6 -5 ---------- Run | Yrd Mat Sub Rec Scr Fac Low Low Zio Pro Machines Disabled 13 | . 3 . . . 10 . . . . Max in Single Turn 5 | . 1 . . . 5 . . . . Garrison Access 1 | . . . . . 1 . . . . Machines Repaired . | . . . . . . . . . . Machines Dismantled . | . . . . . . . . . . Machines Sabotaged . | . . . . . . . . . . Overloaded Fab Kills . | . . . . . . . . . . Hacking | -11 -10 -10 -8 -8 -6 -6 -6 -6 -5 --------- Run | Yrd Mat Sub Rec Scr Fac Low Low Zio Pro Machines Accessed 40 | . 3 . 13 12 10 . 1 1 . Terminals 15 | . 3 . 6 . 6 . . . . Fabricators 1 | . . . . . 1 . . . . Repair Stations 2 | . . . . . 2 . . . . Recycling Units 5 | . . . 5 . . . . . . Scanalyzers 1 | . . . . . 1 . . . . Garrison Access . | . . . . . . . . . . Total Hacks 158 | . 5 . 60 72 13 . 4 4 . Successful 134 | . 2 . 48 72 4 . 4 4 . Failed 24 | . 3 . 12 . 9 . . . . Catastrophic 6 | . . . 4 . 2 . . . . Database Lockouts . | . . . . . . . . . . Manual 22 | . 2 . 14 . 6 . . . . Terminals 34 | . 5 . 21 . 8 . . . . Fabricators 2 | . . . . . 2 . . . . Repair Stations 2 | . . . . . 2 . . . . Recycling Units 14 | . . . 14 . . . . . . Scanalyzers 1 | . . . . . 1 . . . . Garrison Access . | . . . . . . . . . . Terminal Hacks 115 | . 1 . 32 72 2 . 4 4 . Record 95 | . . . 24 67 . . 4 . . Part Schematic 6 | . . . 2 . . . . 4 . Robot Analysis 4 | . . . . 4 . . . . . Prototype ID Bank 2 | . . . 2 . . . . . . Open DSF 1 | . . . . . 1 . . . . Branch Access Points 1 | . 1 . . . . . . . . Alert Level 1 | . . . 1 . . . . . . Unreport Threat 2 | . . . 1 . 1 . . . . Zone Layout 1 | . . . 1 . . . . . . Derelict Proto ID Bank 1 | . . . . 1 . . . . . Release Object 1 | . . . 1 . . . . . . Fabricator Hacks . | . . . . . . . . . . Repair Station Hacks . | . . . . . . . . . . Recycling Unit Hacks 4 | . . . 4 . . . . . . Report Inventory 1 | . . . 1 . . . . . . Retrieve Components 3 | . . . 3 . . . . . . Scanalyzer . | . . . . . . . . . . Garrison Access Hacks . | . . . . . . . . . . Unauthorized Hacks 14 | . 1 . 11 . 2 . . . . Terminals 8 | . 1 . 7 . . . . . . Botnet 7 | . 1 . 6 . . . . . . Sabotage 1 | . . . 1 . . . . . . Fabricators . | . . . . . . . . . . Repair Stations 2 | . . . . . 2 . . . . Mechanics 2 | . . . . . 2 . . . . Recycling Units 4 | . . . 4 . . . . . . Tunnel 4 | . . . 4 . . . . . . Scanalyzers . | . . . . . . . . . . Garrison Access . | . . . . . . . . . . Data Cores Recovered . | . . . . . . . . . . Used . | . . . . . . . . . . Hacking Detections 16 | . 1 . 8 . 7 . . . . Full Trace Events 5 | . . . 4 . 1 . . . . Feedback Events . | . . . . . . . . . . Feedback Blocked . | . . . . . . . . . . Robot Schematics Acquired 3 | . . . . . . . . 3 . Robots Built . | . . . . . . . . . . Authchips . | . . . . . . . . . . Time . | . . . . . . . . . . Total Robot Build Rating . | . . . . . . . . . . Part Schematics Acquired 21 | . . . 2 . . . . 19 . Parts Built . | . . . . . . . . . . Authchips . | . . . . . . . . . . Time . | . . . . . . . . . . Total Part Build Rating . | . . . . . . . . . . Parts Repaired . | . . . . . . . . . . Time . | . . . . . . . . . . Parts Recycled . | . . . . . . . . . . Recycled Matter . | . . . . . . . . . . Retrieved Matter . | . . . . . . . . . . Retrieved Components 7 | . . . 7 . . . . . . Parts Scanalyzed . | . . . . . . . . . . Part Schematics Acquired . | . . . . . . . . . . Parts Damaged . | . . . . . . . . . . Bothacking | -11 -10 -10 -8 -8 -6 -6 -6 -6 -5 ------------ Run | Yrd Mat Sub Rec Scr Fac Low Low Zio Pro Used RIF Installer . | . . . . . . . . . . Robots Hacked . | . . . . . . . . . . Non-combat . | . . . . . . . . . . Combat . | . . . . . . . . . . Robot Hacks Applied . | . . . . . . . . . . Relay Couplers Released 3 | . . . . . 3 . . . . Machine Destruction 3 | . . . . . 3 . . . . Fabnet Peak Effective % . | . . . . . . . . . . Robots Rewired . | . . . . . . . . . . Allies Hacked . | . . . . . . . . . . Hacks Repelled . | . . . . . . . . . . Allies | -11 -10 -10 -8 -8 -6 -6 -6 -6 -5 -------- Run | Yrd Mat Sub Rec Scr Fac Low Low Zio Pro Total Allies . | . . . . . . . . . . Largest Group . | . . . . . . . . . . Highest-Rated Group . | . . . . . . . . . . Highest-Rated Ally . | . . . . . . . . . . Total Orders . | . . . . . . . . . . Ally Attacks . | . . . . . . . . . . Total Damage . | . . . . . . . . . . Kills . | . . . . . . . . . . Allies Corrupted . | . . . . . . . . . . Allies Melted . | . . . . . . . . . . Intel | -11 -10 -10 -8 -8 -6 -6 -6 -6 -5 ------- Run | Yrd Mat Sub Rec Scr Fac Low Low Zio Pro Robot Analysis Total 4 | . . . . 4 . . . . . Derelict Logs Recovered 9 | . . 1 . 3 . 1 2 2 . Drone Launches . | . . . . . . . . . . Drone Recoveries . | . . . . . . . . . . Exploration | -11 -10 -10 -8 -8 -6 -6 -6 -6 -5 ------------- Run | Yrd Mat Sub Rec Scr Fac Low Low Zio Pro Turns Passed 12702 | 118 736 980 1284 3638 1980 1007 637 1135 1187 Spaces Moved 7965 | 72 270 739 974 1965 1047 772 527 911 688 Core 2 | 1 . . . 1 . . . . . Treads 131 | . . . . . 130 1 . . . Legs . | . . . . . . . . . . Wheels 7832 | 71 270 739 974 1964 917 771 527 911 688 Hover . | . . . . . . . . . . Flight . | . . . . . . . . . . Fastest Speed 50 | 50 90 115 105 107 95 115 115 115 115 Average Speed 134 | 90 111 115 114 180 117 125 115 115 148 Slowest Speed 3550 | 100 115 145 120 3550 180 180 115 115 185 Overloaded Moves . | . . . . . . . . . . Propulsion Burnouts . | . . . . . . . . . . Robots Hopped . | . . . . . . . . . . Cave-ins Triggered . | . . . . . . . . . . Exploration Rate (%) 61 | 5 53 58 96 95 26 75 70 76 60 Regions Visited 9 Branch Regions 7 Pre-discovered Areas 6 | . . . 4 2 . . . . . Known Exits Taken 4 | . . . . . 1 1 1 1 . Unknown Exits Taken 5 | 1 1 1 1 1 . . . . . Scrap Searched 15 | . . 1 . 3 . 6 3 2 . Spaces Dug 55 | . . 10 11 . 19 3 . . 12 Terrain Destroyed 457 | 3 9 122 114 . 144 15 1 . 49 Melee 8 | . . . . . 7 . . . 1 Projectile 131 | . . 3 17 . 70 15 1 . 25 AOE 318 | 3 9 119 97 . 67 . . . 23 Terrain Rammed . | . . . . . . . . . . Walls Destroyed . | . . . . . . . . . . Machines Disabled . | . . . . . . . . . . Actions | -11 -10 -10 -8 -8 -6 -6 -6 -6 -5 --------- Run | Yrd Mat Sub Rec Scr Fac Low Low Zio Pro Total 9450 | 95 651 811 1069 2072 1663 791 556 951 791 Wait 911 | . 336 14 6 50 421 . 25 . 59 Move 7956 | 71 269 738 973 1964 1046 771 526 910 688 Hop . | . . . . . . . . . . Pick Up 113 | 4 9 8 11 36 39 . 2 4 . Fast Attach 24 | 7 1 . 1 1 12 1 1 . . Attach 27 | . . 4 1 4 12 . . 3 3 Detach 7 | . . . 1 3 2 . . . 1 Swap 60 | . 10 3 11 4 22 3 . 3 4 Drop 57 | . 1 2 10 10 24 2 1 6 1 Fire 261 | 13 25 42 55 . 77 14 1 . 34 Melee 34 | . . . . . 8 . . 25 1 Ram . | . . . . . . . . . . Kick . | . . . . . . . . . . Crush . | . . . . . . . . . . Escape Stasis . | . . . . . . . . . . Rewire . | . . . . . . . . . . Trap . | . . . . . . . . . . Miscellaneous . | . . . . . . . . . . Route ------- -11/Scrapyard -10/Materials (discovered 4 exits: [*Mat x2] / *Min / [*Sub]) -10/Subcaves (discovered 3 exits: [*Mat x2] / *Rec) -8/Recycling (discovered 2 exits: *Fac / *Scr) -8/Scraptown (discovered 2 exits: *Fac x2) -6/Factory (discovered 2 exits: Fac / *Low) -6/Lower Caves -6/Lower Caves -6/Zion (discovered 2 exits: [Dee] / *Pro) -5/Proximity Caves History --------- Turn | Location | Event 17 | -11/Scrapyard | Discovered new exit (range 15) 119 | -11/Scrapyard | Entered Materials 192 | -10/Materials | Discovered new exit (range 5) 297 | -10/Materials | Identified exit to Mines 313 | -10/Materials | Build established: Mutant 372 | -10/Materials | Discovered new exit (range 15) 551 | -10/Materials | Discovered new exit (range 10) 676 | -10/Materials | Discovered new exit (range 6) 855 | -10/Materials | Entered Subcaves 953 | -10/Subcaves | Ambushed by Subdwellers from Twisted Machinery 1252 | -10/Subcaves | Discovered new exit (range 7) 1374 | -10/Subcaves | Shifting Twisted Machinery released Sub. Laser 1397 | -10/Subcaves | Shifting Twisted Machinery released Battle Rifle 1423 | -10/Subcaves | Learned Materials stockpile data 1438 | -10/Subcaves | A swath of the cavern ceiling suddenly collapsed 1458 | -10/Subcaves | Shifting Twisted Machinery released Mak. Flight Unit 1513 | -10/Subcaves | Shifting Twisted Machinery released Sub. Monowheel 1682 | -10/Subcaves | Discovered new exit (range 3) 1824 | -10/Subcaves | Discovered new exit (range 8) 1835 | -10/Subcaves | Entered Recycling 2318 | -8/Recycling | Discovered new exit (range 14) 2386 | -8/Recycling | Core integrity fell below 50% 3077 | -8/Recycling | Scanned before Scraplab entrance 3089 | -8/Recycling | Discovered new exit (range 11) 3092 | -8/Recycling | Entered Scraplab 3119 | -8/Recycling | Entered Scraptown 3296 | -8/Scraptown | Visited Shadow of the Wyrm 3337 | -8/Scraptown | Visited UFD Registry 3337 | -8/Scraptown | Registered with UFD as "Datasourcer" 3354 | -8/Scraptown | Visited Awakened 3383 | -8/Scraptown | Visited Cyclists 3397 | -8/Scraptown | Entered Cyclist Reading Room 3433 | -8/Scraptown | Visited Assassins FH 3859 | -8/Scraptown | Visited CPS Storage 3876 | -8/Scraptown | Visited Cave Peace 3914 | -8/Scraptown | Visited CR-KLE's Repair Center 3921 | -8/Scraptown | CR-KLE repaired 5 parts 3970 | -8/Scraptown | Scanned Subdweller tech in exchange for log data 3972 | -8/Scraptown | Learned 8 Factory zone layouts 3973 | -8/Scraptown | Learned location of Quarantine (-2) 3982 | -8/Scraptown | Heard Great Nut preacher, LISTEN AND RECITE! 3990 | -8/Scraptown | Discovered new exit (range 11) 4132 | -8/Scraptown | Guru changed UFD alias to "Arccycle" 4324 | -8/Scraptown | Build established: Hauler-Mutant 4655 | -8/Scraptown | Visited Modified Component R&D 4858 | -8/Scraptown | Visited Chapter 10 4964 | -8/Scraptown | Visited Scrapoid Pod Storage 4975 | -8/Scraptown | Found Scrapoid Pod 5025 | -8/Scraptown | Visited Abandonware Association 5087 | -8/Scraptown | Learned abandonware demo "SHUTEYE.EXE" 5087 | -8/Scraptown | Learned abandonware demo "REVENGE.EXE" 5179 | -8/Scraptown | Found Scrap Suit 5242 | -8/Scraptown | Found Scrap Suit 5277 | -8/Scraptown | Discovered new exit (range 3) 5530 | -8/Scraptown | Visited Scrap Suit Storage 5622 | -8/Scraptown | Visited Science Guys 5767 | -8/Scraptown | Visited Analyses Database 6161 | -8/Scraptown | Visited Infowarlord's Domain 6175 | -8/Scraptown | Found Exp. Terrain Scanner 6213 | -8/Scraptown | Visited Observation Area 6757 | -8/Scraptown | Entered Factory 6757 | -6/Factory | Evolved 8 slots: Propulsion x3, Utility x4, Weapon x1 6758 | -6/Factory | Identified exit to Factory 7714 | -6/Factory | Build established: Skirmisher 8194 | -6/Factory | Lost 5 parts (3n2w) 8317 | -6/Factory | Build established: Scavenger-Skirmisher 8464 | -6/Factory | Discovered new exit (range 22) 8642 | -6/Factory | Identified exit to Lower Caves 8737 | -6/Factory | Entered Lower Caves 9102 | -6/Lower Caves | Ambushed by wild Derelicts 9250 | -6/Lower Caves | Discovered new exit (range 9) 9267 | -6/Lower Caves | Identified exit to Lower Caves 9633 | -6/Lower Caves | Attracted the attention of an 0b10 outpost 9716 | -6/Lower Caves | Core integrity fell below 50% 9738 | -6/Lower Caves | Lost 3 parts (1p1n1w) 9744 | -6/Lower Caves | Entered another Lower Caves area 10020 | -6/Lower Caves | Build established: Mutant 10046 | -6/Lower Caves | Learned Factory stockpile data 10320 | -6/Lower Caves | Learned 4 Factory zone layouts 10324 | -6/Lower Caves | Learned Factory security intel 10364 | -6/Lower Caves | Discovered new exit (range 16) 10380 | -6/Lower Caves | Identified exit to Zion 10381 | -6/Lower Caves | Entered Zion 10430 | -6/Zion | Visited the Megawrench Repair Shop 10479 | -6/Zion | Megawrench repaired 10 parts 10488 | -6/Zion | Discovered new exit (range 16) 10571 | -6/Zion | System corruption cleaned by Quarantine Array 10641 | -6/Zion | Learned Factory emergency access door positions 10666 | -6/Zion | Given A8's code to call for help 10828 | -6/Zion | Found Spectral Analyzer 10876 | -6/Zion | Found Exp. Signal Interpreter 10878 | -6/Zion | Found Exp. Terrain Scan Processor 11024 | -6/Zion | Learned Factory terminal intel 11078 | -6/Zion | Discovered new exit (range 29) 11260 | -6/Zion | Turned away by Imprinter 11515 | -6/Zion | Identified exit to Proximity Caves 11516 | -6/Zion | Entered Proximity Caves 11804 | -5/Proximity Caves | Build established: Scavenger-Mutant 11832 | -5/Proximity Caves | Ambushed by research squad 11973 | -5/Proximity Caves | Core integrity fell below 20% 12295 | -5/Proximity Caves | Build established: Mutant 12703 | -5/Proximity Caves | Destroyed by H-66 Slayer with Heavy Assault Rifle Last Messages --------------- 11985_ Carbon-fiber Leg fries itself beyond repair. 11986_ Adv. Heat Sink fries itself beyond repair. 11991_ Acquired 61 matter. 12000_ Flak Gun destroyed. 12002_ Broken Arm. Wheel destroyed. 12005_ G-50 Soldier destroyed. 12013_ Acquired 6 matter. 12015_ Acquired 4 matter. 12017_ Scrap Suit cannibalized Carbon-fiber Leg to repair Flexi-carbon Leg. 12674_ Discarded Scrap Suit. 12689_ Penetrated by Slug. 12693_ Flexi-carbon Leg destroyed. 12697_ Penetrated by Slug. 12697_ Hvy. Ion Cannon destroyed. 12700_ Imp. Sensor Array destroyed. 12700_ Destroyed Phase Shifter. 12703_ Penetrated by Slug. Map ----- +----------------------------------------------------+ | ?????????????????????????????????????????????????? | | ?????????????????????????????????????????????????? | | ?????????????????????????????????????????????????? | | ?????????????????????????????????????????????????? | | ?????????????????????????????????????????????????? | | ?????????????????????????????????????????????????? | | ?????????????????????????????????????????????????? | | ?????????????????????????????????????????????????? | | ?????????????????????????????????????????????????? | | ????????????????????? ? ????????????????????????? | | ??????????????????? ????????????????????????? | | ?????????????????? ????????????????????????? | | ????????????????? ????????????????????????? | | ?????????????????# ????????????????????????? | | ?????????????????# ? ????????????????????????? | | ????????????? ??# #####???????????????????? | | ????????????? ## #; ##??????????????????? | | ????????????? #;h !%??????????????????? | | ?????????????? * ???????????????????? | | ????????????? =%????????????????????? | | ??????????????? #????????????????????? | | ???????????????????# ###??????????????????? | | ?????????????????????# ##?????????????????? | | ?????????????????????## #?????????????????? | | ??????????????????????## #?????????????????? | | ??????????# ???????????# @# #?????????????????? | | ??????????# ??????????# ######?????????????????? | | ??????????# ??????????# #??????????????????????? | | ??????????# ??????????# #??????????????????????? | | ??????????? ?????????## #??????????????????????? | | ??????????? ???????## #??????????????????????? | | ???????????# ??????## ##??????????????????????? | | ???????????# ?????## ##???????????????????????? | | ???????????# ?????# #????????????????????????? | | ???????????# ?????# ##????????????????????????? | | ???#######?# ###### ##????????????????????????? | | ??## ## # ## ##??#####????????????????? | | ### # #### #????????????????? | | #?# #?????????????????? | | ##?# ##?????????????????? | | ###### ### ##??????????????????? | | #???## ### ##?####???????????????????? | | #?##??## ##????????????????????????? | | # #???## #????????????????????????? | | ?# #??## #????????????????????????? | | ??# ##??# ##???????????????????????? | | ???####???# ##??????????????????????? | | #??######### ## #??????????????????????? | | #### ##??????????????????????? | | ## #???????????????????????? | +----------------------------------------------------+ Best States ------------- Heat Dissipation 56 Energy Generation 18 Energy Capacity 300 Matter Stores 300 Matter Capacity 300 Sight Range 16 Robot Scan Range 15 Terrain Scan Range 30 Terrain Scan Density 1010 Armor Coverage 600 Evasion (%) 42 Recoil Reduction 2 Item Schematics ----------------- Hvy. Reflective Plating | -8/Recycling | Hacked Cmb. Airjet | -8/Recycling | Hacked Battle Cannon | -6/Zion | Free Flamer | -6/Zion | Free Slug Cannon | -6/Zion | Free Ripper | -6/Zion | Free Lrn. Missile Launcher | -6/Zion | Archive Lrn. Proton Cannon | -6/Zion | Archive Adv. Melee Analysis Suite | -6/Zion | Archive Hyp. Gauss Cannon | -6/Zion | Archive Energy Well | -6/Zion | Archive Disruptor Cannon | -6/Zion | Archive Imp. Target Analyzer | -6/Zion | Archive Adv. Coolant Injector | -6/Zion | Archive Dispersion Rifle | -6/Zion | Archive Imp. Reaction Control System | -6/Zion | Archive Imp. Weapon Cycler | -6/Zion | Archive KE Penetrator | -6/Zion | Archive Force Field | -6/Zion | Archive Arm. Leg | -6/Zion | Archive Hvy. Phase Cannon | -6/Zion | Archive Robot Schematics ------------------ W-25 Informer | -6/Zion | Archive T-07 Excavator | -6/Zion | Archive D-83 Annihilator | -6/Zion | Archive Fabricated ------------ Nothing Alien Tech Used ----------------- None Achievements -------------- Omniscient Cartographer Packrat Tank Challenges ------------ None Game ------ Seed PhasingActuatorRifle Manual? 0 Play Time 01:57:05 Cumulative 36.0 hours Start 2024.11.19 @ 18:26:11 End 2024.11.19 @ 20:37:24 Sessions 7 Manual Loads 0 Difficulty Rogue Special Mode None Game No. 33 Rogue 32 Adventurer 0 Explorer 1 Win Type - Total 1 Types 1/0/0/0/0/0/0/0/0 Lore% 39 Gallery% 38 Achievement% 33 Wizard Run 0 Options --------- Layout 2 ASCII 0 Keyboard 0 Movement Mouse Keybinds 0 Fullscreen 2 Font 32/Smallcaps Map View 50x44 Zoom Use 0% Tactical HUD 1 Map Filters NONE Filters NONE Steam 1 RUN: 3bb1b6c0-8444-496b-b05b-210d74ae33c7